Cogmind - Beta 16.1 @@@ ROGUE MODE // 2026.03.14 @ 21:42:09 Player: BlobtheGreat Result: Destroyed self with Grenade Launcher Performance ------------- Evolutions (0) 0 Regions Visited (2) 400 Robots Destroyed (29) 145 Value Destroyed (452) 452 Prototype IDs (0) 0 Alien Tech Used (0) 0 Bonus (0) 0 TOTAL SCORE: 997 Bonus ------- None Cogmind --------- Core Integrity 0/250 Matter 115/300 Energy 100/100 System Corruption 3% Temperature Cool (0) Movement Core (50) Location -10/Mines Parts ------- > --- POWER (1) -------- (None) > --- PROPULSION (2) --- (None) > --- UTILITY (2) ------ (None) > --- WEAPON (2) ------- (None) > --- INVENTORY (5) ---- Experimental Sensor Array Authchip [Weapon] Light Assault Rifle Datajack Peak State ------------ > --- POWER ------------ Ion Engine > --- PROPULSION ------- Light Treads Light Treads > --- UTILITY ---------- Small Storage Unit Medium Storage Unit > --- WEAPON ----------- Assault Rifle Light Assault Rifle > --- INVENTORY -------- Light Treads Seismic Detector Seismic Detector Authchip [Weapon] EM Pulse Gun Grenade Launcher Datajack [Rating: 8] Favorites ----------- Power Light Ion Engine Engine Light Ion Engine Propulsion Light Treads Treads Light Treads Utility Small Storage Unit Storage Small Storage Unit Protection Light Armor Plating Weapon Light Assault Rifle Energy Gun Small Laser Ballistic Gun Light Assault Rifle Launcher Grenade Launcher Build | -11 -10 -10 ------- Run | Yrd Mat Min Slots Evolved . | . . . Power . | . . . Propulsion . | . . . Utility . | . . . Weapon . | . . . Parts Attached 15 | 6 6 3 Power 2 | 1 1 . Engine 2 | 1 1 . Core . | . . . Reactor . | . . . Propulsion 3 | 2 . 1 Treads 3 | 2 . 1 Leg . | . . . Wheel . | . . . Hover . | . . . Flight . | . . . Utility 4 | 1 3 . Device . | . . . Storage 3 | 1 2 . Processor . | . . . Hackware . | . . . Protection 1 | . 1 . Artifact . | . . . Weapon 6 | 2 2 2 Energy Gun 2 | 1 . 1 Energy Cannon . | . . . Ballistic Gun 2 | 1 1 . Ballistic Cannon . | . . . Launcher 2 | . 1 1 Special Weapon . | . . . Impact Weapon . | . . . Slashing Weapon . | . . . Piercing Weapon . | . . . Special Melee Weapon . | . . . Unidentified Prototypes . | . . . Parts Lost 11 | . 1 10 Power 2 | . 1 1 Propulsion 3 | . . 3 Utility 1 | . . 1 Weapon 5 | . . 5 Highest Loss Streak 6 | . 1 6 To Critical Strikes . | . . . Average Backups 6 | 3 7 5 Power . | . . . Propulsion 1 | 1 1 . Utility 2 | . 2 2 Weapon 1 | . 2 1 Tool/Special . | . . . Unused Backups 8 | . 2 6 Power . | . . . Propulsion 2 | . 2 . Utility 4 | . . 4 Weapon 1 | . . 1 Tool/Special 1 | . . 1 Average Slot Usage (%) 78 | . 87 62 Engine 11 | . 13 7 Treads 25 | . 27 20 Storage 11 | . 14 7 Protection 4 | . 2 7 Energy Gun 4 | . 3 7 Ballistic Gun 18 | . 24 8 Peak Build Rating 8 | 6 8 8 Average Rating 6 | 5 7 5 On Entrance 4 | . 6 8 Avg Prop Armor Cover (%) 33 | . . 33 Naked Turns 16 | . . 16 Heaviest Build 32 | 10 31 32 Greatest Support 40 | 40 40 40 Greatest Overweight (x) . | . . . Average Overweight (x) . | . . . Largest Inventory Capacity 15 | 8 15 15 Average Capacity 10 | 7 10 10 Most Carried 8 | 6 8 8 Average Carried 6 | 3 7 5 Final Capacity 15 | 8 15 5 Final Carried 8 | 6 8 4 Class Distribution -------------------- 100% | Mutant Dominant Class ---------------- Mutant | -10/Materials Mutant | -10/Mines Resources | -11 -10 -10 ----------- Run | Yrd Mat Min Matter Collected 646 | 290 205 151 Remotely . | . . . Salvage Created 789 | 219 445 125 Parts 49 | 16 29 4 Haulers Intercepted 2 | . 2 . Recyclers Shooed 4 | . 3 1 Parts Field Recycled . | . . . Retrieved Matter . | . . . Parts Self-Destructed . | . . . Prevented . | . . . Parts Restored . | . . . Kills | -11 -10 -10 ------- Run | Yrd Mat Min Combat Hostiles Destroyed 25 | . 13 12 Guns 11 | . 10 1 AOE 14 | . 3 11 Classes Destroyed 7 | 3 3 1 Worker 3 | 1 1 1 Tunneler 5 | 5 . . Hauler 2 | . 2 . Recycler 2 | 1 1 . Swarmer 9 | . 9 . Grunt 8 | . 4 4 Assembled 8 | . . 8 Best Kill Streak 4 | 3 4 3 Combat Bots Only 3 | . 3 3 Max Kills in Single Turn 3 | 1 2 3 Gunslinging . | . . . Exploded 3 | . 2 3 Melee . | . . . Uniques/NPCs Destroyed . | . . . Combat | -11 -10 -10 -------- Run | Yrd Mat Min Hostile Shots Fired 104 | . 68 36 Missed 27 | . 19 8 Hits 77 | . 49 28 Projectile 77 | . 49 28 AOE 13 | . . 13 Critical Strikes 1 | . . 1 Damage Taken 1325 | . 428 897 Core 254 | . 41 213 Absorbed by Shields . | . . . Regen/Repaired (Parts) 61 | . 61 . Core Remaining (%) 100 | 100 . . Volleys Fired 96 | 30 43 23 Largest 2 | 2 2 2 Hottest 60 | 60 60 60 Shots Fired 170 | 59 84 27 Gun 149 | 59 82 8 Cannon . | . . . Launcher 21 | . 2 19 Special . | . . . Kinetic 101 | 30 66 5 Thermal 45 | 29 16 . Explosive 21 | . 2 19 Electromagnetic 3 | . . 3 Robot Hit Streak 14 | 8 14 7 Robot Miss Streak 5 | 5 2 2 Penetration Max . | . . . Secondary Targets 2 | . 2 . Max Gunslinging Chain 1 | . 1 . Shots Hit Robots 101 | 33 57 11 Core Hits 64 | 14 23 27 Critical Kills . | . . . Critical Parts Destroyed 1 | . 1 . Critical Strikes 1 | . 1 . Destroy 1 | . 1 . Melee Attacks . | . . . Impact . | . . . Slashing . | . . . Piercing . | . . . Sneak Attacks . | . . . Combat Hostiles . | . . . Follow-up Attacks . | . . . Damage Inflicted 2071 | 314 816 941 Guns 990 | 314 599 77 Cannons . | . . . Explosions 1058 | . 201 857 Melee . | . . . Ramming 23 | . 16 7 Kinetic 658 | 93 500 65 Thermal 320 | 221 99 . Explosive 1058 | . 201 857 Electromagnetic 12 | . . 12 Impact . | . . . Slashing . | . . . Piercing . | . . . Highest Corruption 3 | . 3 3 Average Corruption 2 | . 1 3 Corruption Purged . | . . . Corruption Blocked . | . . . Effects 21 | . 7 14 Message Errors 6 | . 3 3 Matter Fused 8 | . 2 6 Energy Discharges 3 | . . 3 Data Loss (minor) 2 | . 1 1 Data Loss (major) 2 | . 1 1 Overload Shots . | . . . Overflow Damage 66 | . 28 38 Projectiles . | . . . Explosions 66 | . 28 38 Melee . | . . . Knockbacks . | . . . Impact . | . . . Kinetic . | . . . Secondary . | . . . Self-Inflicted Damage 151 | . . 151 Shots 6 | . . 6 Rammed 2 | . 1 1 Targets Rammed 3 | . 2 1 Kicked . | . . . Crushed 1 | . 1 . Highest Temperature 80 | 80 40 36 Average Temperature 20 | 28 15 9 Received Heat Transfer 221 | . 84 137 Siege Activations . | . . . Martial Activations . | . . . Shielding Activations . | . . . Robots Disrupted . | . . . Combat Hostiles . | . . . Robots Corrupted . | . . . Combat Hostiles . | . . . Parts Fried . | . . . Impact Corruptions . | . . . Robots Melted . | . . . Combat Hostiles . | . . . Parts Melted . | . . . Heat Transferred 725 | 500 225 . Parts Sabotaged . | . . . Parts Stolen . | . . . Parts Stripped . | . . . Power Chain Reactions . | . . . Alert | -11 -10 -10 ------- Run | Yrd Mat Min Maximum Alert Level . | . . . Low Security (%) 100 | 100 100 100 Level 1 . | . . . Level 2 . | . . . Level 3 . | . . . Level 4 . | . . . Level 5 . | . . . High Security . | . . . Max Security . | . . . Peak Influence 195 | 15 195 73 Initial 13 | . 3 13 Average 55 | 1 89 22 Influence Increases 666 | 35 407 224 Destroy 0b10 Robot/C 340 | . 260 80 Destroy 0b10 Robot/NC 60 | 35 20 5 Destroy Leader 84 | . 64 20 Successful Hack 13 | . 13 . Select Force Hacks 30 | . 30 . Disable Machine 15 | . 15 . Destroy Structure 94 | . 5 89 Lose Combat Pursuer 30 | . . 30 Influence Decreases 662 | 30 376 256 Entered New Map 25 | . 2 23 Time Decay 601 | 30 364 207 Lost Part 36 | . 10 26 Squads Dispatched 4 | . 4 . Investigation 1 | . 1 . Extermination . | . . . Reinforcement 3 | . 3 . Assault . | . . . Garrison . | . . . Intercept . | . . . Searches Triggered . | . . . Construction Impeded . | . . . Haulers Reinforced . | . . . Active Scanning Responses . | . . . Cargo Convoy Interrupts . | . . . Stealth | -11 -10 -10 --------- Run | Yrd Mat Min Distress Signals . | . . . Communications Jammed . | . . . Distress Signals . | . . . Times Spotted 40 | . 22 18 Peak Tracking Total 8 | . 4 8 Tactical Retreats 2 | . . 2 Traps | -11 -10 -10 ------- Run | Yrd Mat Min Traps Triggered 2 | . 2 . Indirectly . | . . . Trap Hack Attempts . | . . . Triggered . | . . . Disarmed . | . . . Reprogrammed . | . . . Reused . | . . . Traps Extracted . | . . . Installed . | . . . Triggered . | . . . Machines | -11 -10 -10 ---------- Run | Yrd Mat Min Machines Disabled 1 | . 1 . Max in Single Turn 1 | . 1 . Machines Repaired . | . . . Machines Dismantled . | . . . Machines Sabotaged . | . . . Overloaded Fab Kills . | . . . Hacking | -11 -10 -10 --------- Run | Yrd Mat Min Machines Accessed 4 | . 4 . Terminals 2 | . 2 . Fabricators . | . . . Repair Stations 1 | . 1 . Recycling Units 1 | . 1 . Scanalyzers . | . . . Garrison Access . | . . . Total Hacks 11 | . 11 . Successful 7 | . 7 . Failed 4 | . 4 . Catastrophic . | . . . Database Lockouts . | . . . Manual 7 | . 7 . Terminals 7 | . 7 . Fabricators . | . . . Repair Stations 2 | . 2 . Recycling Units 2 | . 2 . Scanalyzers . | . . . Garrison Access . | . . . Terminal Hacks 2 | . 2 . Robot Analysis 2 | . 2 . Fabricator Hacks . | . . . Repair Station Hacks 2 | . 2 . Scan Component 1 | . 1 . Repair 1 | . 1 . Recycling Unit Hacks . | . . . Scanalyzer . | . . . Garrison Access Hacks . | . . . Unauthorized Hacks 3 | . 3 . Terminals 2 | . 2 . Botnet 1 | . 1 . Skim 1 | . 1 . Fabricators . | . . . Repair Stations . | . . . Recycling Units 1 | . 1 . Tunnel 1 | . 1 . Scanalyzers . | . . . Garrison Access . | . . . Data Cores Recovered . | . . . Used . | . . . Hacking Detections 4 | . 4 . Full Trace Events . | . . . Feedback Events . | . . . Feedback Blocked . | . . . Robot Schematics Acquired . | . . . Robots Built . | . . . Authchips . | . . . Time . | . . . Total Robot Build Rating . | . . . Part Schematics Acquired . | . . . Parts Built . | . . . Authchips . | . . . Time . | . . . Total Part Build Rating . | . . . Part Studies Acquired . | . . . Parts Repaired 1 | . 1 . Time 26 | . 26 . Parts Recycled . | . . . Recycled Matter . | . . . Retrieved Matter . | . . . Retrieved Components . | . . . Parts Scanalyzed . | . . . Part Schematics Acquired . | . . . Parts Damaged . | . . . Bothacking | -11 -10 -10 ------------ Run | Yrd Mat Min Used RIF Installer . | . . . Robots Hacked . | . . . Non-combat . | . . . Combat . | . . . Robot Hacks Applied . | . . . Relay Couplers Released . | . . . Fabnet Peak Effective % . | . . . Robots Rewired . | . . . Allies Hacked . | . . . Hacks Repelled . | . . . Allies | -11 -10 -10 -------- Run | Yrd Mat Min Total Allies . | . . . Largest Group . | . . . Highest-Rated Group . | . . . Highest-Rated Ally . | . . . Total Orders . | . . . Ally Attacks . | . . . Total Damage . | . . . Kills . | . . . Allies Corrupted . | . . . Allies Melted . | . . . Intel | -11 -10 -10 ------- Run | Yrd Mat Min Active Infowar (turns) . | . . . Robot Analysis Total 2 | . 2 . Derelict Logs Recovered . | . . . Drone Launches . | . . . Drone Recoveries . | . . . Exploration | -11 -10 -10 ------------- Run | Yrd Mat Min Turns Passed 1785 | 249 960 576 Spaces Moved 1001 | 98 492 411 Core 234 | 4 . 230 Treads 767 | 94 492 181 Legs . | . . . Wheels . | . . . Hover . | . . . Flight . | . . . Fastest Speed 50 | 50 160 50 Average Speed 134 | 155 160 98 Slowest Speed 160 | 160 160 160 Overloaded Moves . | . . . Propulsion Burnouts . | . . . Robots Hopped . | . . . Potential Cave-ins . | . . . Cave-ins Triggered . | . . . Exploration Rate (%) 46 | 5 77 56 Regions Visited 2 Branch Regions 1 Pre-discovered Areas 1 | . 1 . Known Exits Taken . | . . . Unknown Exits Taken 2 | 1 1 . Scrap Searched . | . . . Spaces Dug 64 | . . 64 Terrain Destroyed 131 | . 4 127 Melee . | . . . Projectile . | . . . AOE 131 | . 4 127 Terrain Rammed . | . . . Walls Destroyed . | . . . Machines Disabled . | . . . Actions | -11 -10 -10 --------- Run | Yrd Mat Min Total 1286 | 139 588 559 Wait 134 | . 30 104 Move 999 | 97 491 411 Hop . | . . . Pick Up 13 | 6 5 2 Fast Attach 12 | 6 6 . Attach 9 | . 1 8 Detach 6 | . 2 4 Swap 5 | . 2 3 Drop 9 | . 6 3 Fire 96 | 30 43 23 Melee . | . . . Ram . | . . . Kick . | . . . Crush 3 | . 2 1 Escape Stasis . | . . . Rewire . | . . . Trap . | . . . Miscellaneous . | . . . Route ------- -11/Scrapyard -10/Materials (discovered 2 exits: [*Mat] / [*Min]) -10/Mines (discovered 1 exit: [*Mat]) History --------- Turn | Location | Event 21 | -11/Scrapyard | Discovered new exit (range 15) 250 | -11/Scrapyard | Entered Materials 308 | -10/Materials | Build established: Mutant 667 | -10/Materials | Repaired Lgt. Treads 977 | -10/Materials | Discovered new exit (range 6) 1094 | -10/Materials | Discovered new exit (range 13) 1210 | -10/Materials | Entered Mines 1339 | -10/Mines | Discovered new exit (range 9) 1486 | -10/Mines | Assembled infested the area 1531 | -10/Mines | Core integrity fell below 50% 1536 | -10/Mines | Core integrity fell below 20% 1558 | -10/Mines | Found a damaged Exp. Sensor Array with a note attached 1559 | -10/Mines | Found Prototype Device 1561 | -10/Mines | Lost 6 parts (1p2n1u2w) 1786 | -10/Mines | Destroyed self with Grenade Launcher Last Messages --------------- 01684_ The unstable cave ceiling collapses. 01687_ T-07 Excavator is excavating. 01692_ Destroyed Asb. Hover Unit. 01692_ as-16279 destroyed. 01693_ T-07 Excavator destroyed. 01693_ as-08003 destroyed. 01697_ Acquired 10 matter. 01723_ The unstable cave ceiling collapses. 01739_ Lgt. Treads destroyed. 01741_ as-56173 destroyed. 01744_ The unstable cave ceiling collapses. 01745_ I9OIMXL =XJUGCH/V KAVJ 01746_ Acquired 13 matter. 01746_ Acquired 3 matter. 01748_ Acquired Lgt. Assault Rifle. 01765_ HLMHRNQ>S D LUR4F &SJ>HXO1R4NDLG/HDVMGZ 01768_ Acquired 4 matter. 01786_ as-97547 destroyed. 01786_ Grenade Launcher destroyed. 01786_ Destroyed Grenade Launcher. Map ----- +----------------------------------------------------+ | ????????????# #????####????? | | ????????????# # #???## ##???? | | ????????????### #???# #???? | | ??????????????# #???# #???# | | ??????????????# ##???# ##?# | | ???????????#### #????# ### | | ???????????# #????# ## | | ?????????### ####???## """ ## | | ???????### ##?????# """ # | | ???????# |* ##????# """ | | ???????#=%! # #???## """ | | ???????### # ##### # | | ???###### # ## ## | | ???# # ## ## | | ???# ##? | | ???# #?? | | ???#*" #### #?? | | ???#=*[ #??# #?? | | ???### # ###??## #?? | | ?????# # #????# #### ##?? | | ?????###u###????## #??#####??? | | ??????## #??????# ##?????????? | | ?????## #??????###??????????? | | ?????# #???????????????????? | | ?????# < #???????????????????? | | ?????#@ ##???????????????????? | | ?????# #????????????????????? | | ????? #????????????????????? | | ?????# ###????????????????????? | | ????? ??????????????????????? | | ????? ??????????????????????? | | ???## ##??????????# ??????? | | ???# ##????? #??????? | | ???# ## #??????? | | ???# !%=| #???????????? | | ???# ### #???????????? | | ????# #??? #???????????? | | ????#### #???? ##???????????? | | ????????#??????? #????????????? | | ?????????????????#????????????? | | ??????????????????????????????? | | ??????????????????????????????? | | ??????????????????????????????? | | ??????????????????????????????? | | | | | | | | | | | | | +----------------------------------------------------+ Best States ------------- Heat Dissipation 25 Energy Generation 10 Energy Capacity 250 Matter Stores 300 Matter Capacity 300 Sight Range 16 Terrain Scan Density 10 Armor Coverage 150 Evasion (%) 50 Recoil Reduction 2 Authchip Count 1 Item Schematics ----------------- None Robot Schematics ------------------ None Fabricated ------------ Nothing Repaired ---------- Lgt. Treads | 56% | -10/Materials Studied --------- None Alien Tech Used ----------------- None Achievements -------------- None Challenges ------------ None Game ------ Seed CouplerParticleSuit Manual? 0 Play Time 00:11:57 Cumulative 270.2 hours Start 2026.03.14 @ 21:33:17 End 2026.03.14 @ 21:42:09 Sessions 1 Manual Loads 0 Difficulty Rogue Special Mode None Game No. 272 Rogue 272 Adventurer 0 Explorer 0 Win Type - Total 13 Types 9/1/2/0/0/0/0/0/0/1 Lore% 89 Gallery% 77 Achievement% 64 Wizard Run 0 Options --------- Layout 1 ASCII 0 Keyboard 1 Movement Arrows Keybinds 0 Fullscreen 1 Font 24/Smallcaps Map View 50x40 Zoom Use 0% Tactical HUD 1 Map Filters NONE Filters NONE Steam 1 RUN: a88c302c-dd57-468d-8e6c-b3fc4580f3da